Cogmind - Beta 16.1 @@@ ROGUE MODE // 2026.04.14 @ 21:09:58 Player: Selene Result: Destroyed by as-74479 with Assembled Blade Performance ------------- Evolutions (0) 0 Regions Visited (4) 800 Robots Destroyed (20) 100 Value Destroyed (407) 407 Prototype IDs (25) 500 Alien Tech Used (0) 0 Bonus (261) 261 TOTAL SCORE: 2068 Bonus ------- Aligned with FarCom 300 Friendly Fire -39 Cogmind --------- Core Integrity 0/250 Matter 202/300 Energy 100/100 System Corruption 13% Temperature Cool (0) Movement Treading (160) Location -9/Mines Parts ------- > --- POWER (1) -------- (None) > --- PROPULSION (2) --- Light Treads > --- UTILITY (2) ------ Small Storage Unit > --- WEAPON (2) ------- Light Assault Rifle > --- INVENTORY (8) ---- Light Ion Engine Light Nuclear Core Improved Heat Sink Machine Analyzer Modified TNC ECM Suite Peak State ------------ > --- POWER ------------ Light Nuclear Core > --- PROPULSION ------- Light Treads Compact Wheel > --- UTILITY ---------- Small Storage Unit Seismic Detector > --- WEAPON ----------- Light Assault Rifle Light Assault Rifle > --- INVENTORY -------- Light Ion Engine Light Nuclear Core Light Treads Improved Heat Sink Machine Analyzer Modified TNC ECM Suite Light Assault Rifle [Rating: 10] Favorites ----------- Power Light Ion Engine Engine Light Ion Engine Power Core Light Nuclear Core Propulsion Light Treads Treads Light Treads Wheel Compact Wheel Utility Small Storage Unit Device Seismic Detector Storage Small Storage Unit Weapon Light Assault Rifle Ballistic Gun Light Assault Rifle Launcher Grenade Launcher Special Weapon Mining Laser Build | -11 -10 -10 -10 -9 ------- Run | Yrd Mat Min Exi Min Slots Evolved . | . . . . . Power . | . . . . . Propulsion . | . . . . . Utility . | . . . . . Weapon . | . . . . . Parts Attached 15 | 7 6 . . 2 Power 2 | 1 . . . 1 Engine 1 | 1 . . . . Core 1 | . . . . 1 Reactor . | . . . . . Propulsion 4 | 2 2 . . . Treads 2 | 1 1 . . . Leg . | . . . . . Wheel 2 | 1 1 . . . Hover . | . . . . . Flight . | . . . . . Utility 2 | 2 . . . . Device 1 | 1 . . . . Storage 1 | 1 . . . . Processor . | . . . . . Hackware . | . . . . . Protection . | . . . . . Artifact . | . . . . . Weapon 7 | 2 4 . . 1 Energy Gun . | . . . . . Energy Cannon . | . . . . . Ballistic Gun 4 | 2 2 . . . Ballistic Cannon . | . . . . . Launcher 2 | . 1 . . 1 Special Weapon 1 | . 1 . . . Impact Weapon . | . . . . . Slashing Weapon . | . . . . . Piercing Weapon . | . . . . . Special Melee Weapon . | . . . . . Unidentified Prototypes . | . . . . . Parts Lost 7 | . . . . 7 Power 1 | . . . . 1 Propulsion 2 | . . . . 2 Utility 1 | . . . . 1 Weapon 3 | . . . . 3 Highest Loss Streak 7 | . . . . 7 To Critical Strikes . | . . . . . Average Backups 7 | 2 7 8 8 7 Power . | . . 1 1 1 Propulsion 1 | 1 1 1 1 . Utility 2 | . 1 2 3 4 Weapon 2 | . 3 3 2 1 Tool/Special . | . . . . . Unused Backups 10 | . 4 1 . 5 Power 1 | . . . . 1 Propulsion 1 | . . 1 . . Utility 6 | . 2 . . 4 Weapon 2 | . 2 . . . Tool/Special . | . . . . . Average Slot Usage (%) 99 | . 99 100 100 92 Engine 13 | . 14 14 14 7 Treads 18 | . 17 21 14 16 Wheel 9 | . 9 7 14 11 Device 13 | . 14 14 14 11 Storage 14 | . 14 14 14 14 Ballistic Gun 27 | . 27 28 28 21 Peak Build Rating 10 | 7 8 8 8 10 Average Rating 7 | 5 7 8 8 7 On Entrance 6 | . 7 8 8 8 Avg Prop Armor Cover (%) 13 | 6 13 14 14 12 Naked Turns . | . . . . . Heaviest Build 13 | 12 13 11 11 13 Greatest Support 40 | 20 40 40 16 40 Greatest Overweight (x) . | . . . . . Average Overweight (x) . | . . . . . Largest Inventory Capacity 8 | 8 8 8 8 8 Average Capacity 7 | 7 8 8 8 8 Most Carried 8 | 5 8 8 8 8 Average Carried 7 | 2 7 7 7 7 Final Capacity 8 | 8 8 8 8 8 Final Carried 8 | 5 8 8 8 6 Class Distribution -------------------- 100% | Mutant Dominant Class ---------------- Mutant | -10/Materials Mutant | -10/Mines Mutant | -10/Exiles Mutant | -9/Mines Resources | -11 -10 -10 -10 -9 ----------- Run | Yrd Mat Min Exi Min Matter Collected 754 | 294 354 96 10 . Remotely . | . . . . . Salvage Created 674 | 128 404 80 . 62 Parts 48 | 11 31 4 . 2 Haulers Intercepted . | . . . . . Recyclers Shooed . | . . . . . Parts Field Recycled . | . . . . . Retrieved Matter . | . . . . . Parts Self-Destructed . | . . . . . Prevented . | . . . . . Parts Restored . | . . . . . Kills | -11 -10 -10 -10 -9 ------- Run | Yrd Mat Min Exi Min Combat Hostiles Destroyed 18 | . 12 2 . 4 Guns 15 | . 12 2 . 1 AOE 3 | . . . . 3 Classes Destroyed 7 | 2 4 . . 1 Tunneler 2 | 2 . . . . Recycler 1 | 1 . . . . Mechanic 1 | . 1 . . . Watcher 1 | . 1 . . . Swarmer 6 | . 6 . . . Grunt 9 | . 6 2 . 1 Assembled 4 | . . . . 4 Best Kill Streak 4 | 3 4 1 . 3 Combat Bots Only 3 | . 3 1 . 3 Max Kills in Single Turn 2 | 1 1 1 . 2 Gunslinging . | . . . . . Exploded 1 | . . . . 1 Melee . | . . . . . Uniques/NPCs Destroyed . | . . . . . Combat | -11 -10 -10 -10 -9 -------- Run | Yrd Mat Min Exi Min Hostile Shots Fired 100 | . 50 24 . 26 Missed 23 | . 11 6 . 6 Hits 77 | . 39 18 . 20 Melee 12 | . . . . 12 Projectile 65 | . 39 18 . 8 Critical Strikes 1 | . . 1 . . Damage Taken 1148 | . 398 259 . 491 Core 260 | . 67 74 . 119 Absorbed by Shields . | . . . . . Regen/Repaired (Parts) 194 | . 194 . . . Core Remaining (%) 100 | 100 . . . . Volleys Fired 99 | 9 62 13 . 15 Largest 2 | 2 2 2 . 2 Hottest 100 | 40 100 40 . 40 Shots Fired 184 | 18 120 26 . 20 Gun 174 | 18 116 26 . 14 Cannon . | . . . . . Launcher 7 | . 1 . . 6 Special 3 | . 3 . . . Kinetic 174 | 18 116 26 . 14 Thermal 3 | . 3 . . . Explosive 7 | . 1 . . 6 Electromagnetic . | . . . . . Robot Hit Streak 10 | 5 10 5 . 3 Robot Miss Streak 7 | 2 7 1 . 2 Penetration Max . | . . . . . Secondary Targets 1 | . 1 . . . Max Gunslinging Chain 1 | . 1 . . . Shots Hit Robots 112 | 11 75 16 . 10 Core Hits 59 | 6 30 6 . 17 Critical Kills 1 | . . . . 1 Critical Parts Destroyed 3 | . 3 . . . Critical Strikes 4 | . 3 . . 1 Destroy 4 | . 3 . . 1 Melee Attacks . | . . . . . Impact . | . . . . . Slashing . | . . . . . Piercing . | . . . . . Sneak Attacks . | . . . . . Combat Hostiles . | . . . . . Follow-up Attacks . | . . . . . Damage Inflicted 1482 | 127 769 130 . 456 Guns 1096 | 127 769 130 . 70 Cannons . | . . . . . Explosions 386 | . . . . 386 Melee . | . . . . . Ramming . | . . . . . Kinetic 1096 | 127 769 130 . 70 Thermal . | . . . . . Explosive 386 | . . . . 386 Electromagnetic . | . . . . . Impact . | . . . . . Slashing . | . . . . . Piercing . | . . . . . Highest Corruption 13 | . . . . 13 Average Corruption 5 | . . . . 5 Corruption Purged . | . . . . . Corruption Blocked . | . . . . . Effects 1 | . . . . 1 Matter Fused 1 | . . . . 1 Overload Shots . | . . . . . Overflow Damage 11 | . . . . 11 Projectiles . | . . . . . Explosions 11 | . . . . 11 Melee . | . . . . . Knockbacks . | . . . . . Impact . | . . . . . Kinetic . | . . . . . Secondary . | . . . . . Self-Inflicted Damage 29 | . . . . 29 Shots 1 | . . . . 1 Rammed . | . . . . . Targets Rammed . | . . . . . Kicked . | . . . . . Crushed . | . . . . . Highest Temperature 22 | . 4 22 . 4 Average Temperature 3 | . 1 7 . 3 Received Heat Transfer 354 | . 183 162 . 9 Siege Activations . | . . . . . Martial Activations . | . . . . . Shielding Activations . | . . . . . Robots Disrupted . | . . . . . Combat Hostiles . | . . . . . Robots Corrupted . | . . . . . Combat Hostiles . | . . . . . Parts Fried . | . . . . . Impact Corruptions . | . . . . . Robots Melted . | . . . . . Combat Hostiles . | . . . . . Parts Melted . | . . . . . Heat Transferred . | . . . . . Parts Sabotaged . | . . . . . Parts Stolen . | . . . . . Parts Stripped . | . . . . . Power Chain Reactions . | . . . . . Alert | -11 -10 -10 -10 -9 ------- Run | Yrd Mat Min Exi Min Maximum Alert Level . | . . . . . Low Security (%) 100 | 100 100 100 . 100 Level 1 . | . . . . . Level 2 . | . . . . . Level 3 . | . . . . . Level 4 . | . . . . . Level 5 . | . . . . . High Security . | . . . . . Max Security . | . . . . . Peak Influence 111 | 15 111 40 . 31 Initial 3 | . 3 . . . Average 22 | 1 31 2 . 5 Influence Increases 529 | 15 430 50 . 34 Destroy 0b10 Robot/C 280 | . 240 40 . . Destroy 0b10 Robot/NC 25 | 15 10 . . . Destroy Leader 52 | . 42 10 . . Successful Hack 50 | . 50 . . . Destroy Structure 47 | . 13 . . 34 Lose Combat Pursuer 75 | . 75 . . . Influence Decreases 529 | 10 435 50 . 34 Entered New Map 2 | . 2 . . . Time Decay 503 | 10 433 50 . 10 Lost Part 10 | . . . . 10 Lost Ally 14 | . . . . 14 Squads Dispatched 1 | . 1 . . . Investigation . | . . . . . Extermination . | . . . . . Reinforcement 1 | . 1 . . . Assault . | . . . . . Garrison . | . . . . . Intercept . | . . . . . Searches Triggered . | . . . . . Construction Impeded . | . . . . . Haulers Reinforced . | . . . . . Active Scanning Responses . | . . . . . Cargo Convoy Interrupts . | . . . . . Stealth | -11 -10 -10 -10 -9 --------- Run | Yrd Mat Min Exi Min Distress Signals 1 | . 1 . . . Communications Jammed . | . . . . . Distress Signals . | . . . . . Times Spotted 46 | . 24 2 . 20 Peak Tracking Total 19 | . 5 2 . 19 Tactical Retreats 4 | . 3 . . 1 Traps | -11 -10 -10 -10 -9 ------- Run | Yrd Mat Min Exi Min Traps Triggered . | . . . . . Indirectly . | . . . . . Trap Hack Attempts . | . . . . . Triggered . | . . . . . Disarmed . | . . . . . Reprogrammed . | . . . . . Reused . | . . . . . Traps Extracted . | . . . . . Installed . | . . . . . Triggered . | . . . . . Machines | -11 -10 -10 -10 -9 ---------- Run | Yrd Mat Min Exi Min Machines Disabled . | . . . . . Max in Single Turn . | . . . . . Machines Repaired . | . . . . . Machines Dismantled . | . . . . . Machines Sabotaged . | . . . . . Overloaded Fab Kills . | . . . . . Hacking | -11 -10 -10 -10 -9 --------- Run | Yrd Mat Min Exi Min Machines Accessed 10 | . 8 . 2 . Terminals 6 | . 6 . . . Fabricators . | . . . . . Repair Stations 1 | . 1 . . . Recycling Units 1 | . 1 . . . Scanalyzers . | . . . . . Garrison Access . | . . . . . Total Hacks 30 | . 28 . 2 . Successful 19 | . 17 . 2 . Failed 11 | . 11 . . . Catastrophic 1 | . 1 . . . Database Lockouts . | . . . . . Manual 20 | . 19 . 1 . Terminals 23 | . 23 . . . Fabricators . | . . . . . Repair Stations 4 | . 4 . . . Recycling Units 1 | . 1 . . . Scanalyzers . | . . . . . Garrison Access . | . . . . . Terminal Hacks 5 | . 3 . 2 . Record 1 | . . . 1 . Prototype ID Bank 1 | . 1 . . . Locate Traps 1 | . 1 . . . Zone Layout 1 | . 1 . . . Proto ID Catalog 1 | . . . 1 . Fabricator Hacks . | . . . . . Repair Station Hacks 4 | . 4 . . . Scan Component 2 | . 2 . . . Repair 2 | . 2 . . . Recycling Unit Hacks 1 | . 1 . . . Retrieve Components 1 | . 1 . . . Scanalyzer . | . . . . . Garrison Access Hacks . | . . . . . Unauthorized Hacks 9 | . 9 . . . Terminals 9 | . 9 . . . Assimilate 2 | . 2 . . . Operators 1 | . 1 . . . Skim 6 | . 6 . . . Fabricators . | . . . . . Repair Stations . | . . . . . Recycling Units . | . . . . . Scanalyzers . | . . . . . Garrison Access . | . . . . . Data Cores Recovered . | . . . . . Used . | . . . . . Hacking Detections 7 | . 7 . . . Full Trace Events . | . . . . . Feedback Events . | . . . . . Feedback Blocked . | . . . . . Robot Schematics Acquired . | . . . . . Robots Built . | . . . . . Authchips . | . . . . . Time . | . . . . . Total Robot Build Rating . | . . . . . Part Schematics Acquired . | . . . . . Parts Built . | . . . . . Authchips . | . . . . . Time . | . . . . . Total Part Build Rating . | . . . . . Part Studies Acquired . | . . . . . Parts Repaired 2 | . 2 . . . Time 52 | . 52 . . . Parts Recycled . | . . . . . Recycled Matter . | . . . . . Retrieved Matter . | . . . . . Retrieved Components 4 | . 4 . . . Parts Scanalyzed . | . . . . . Part Schematics Acquired . | . . . . . Parts Damaged . | . . . . . Bothacking | -11 -10 -10 -10 -9 ------------ Run | Yrd Mat Min Exi Min Used RIF Installer . | . . . . . Robots Hacked . | . . . . . Non-combat . | . . . . . Combat . | . . . . . Robot Hacks Applied . | . . . . . Relay Couplers Released . | . . . . . Fabnet Peak Effective % . | . . . . . Robots Rewired . | . . . . . Allies Hacked . | . . . . . Hacks Repelled . | . . . . . Allies | -11 -10 -10 -10 -9 -------- Run | Yrd Mat Min Exi Min Total Allies 4 | . . 4 . . Largest Group 4 | . . 4 4 3 Highest-Rated Group 71 | . . 71 71 40 Highest-Rated Ally 31 | . . 31 31 16 Total Orders . | . . . . . Ally Attacks 8 | . . . . 8 Total Damage 79 | . . . . 79 Kills . | . . . . . Allies Corrupted . | . . . . . Allies Melted . | . . . . . Intel | -11 -10 -10 -10 -9 ------- Run | Yrd Mat Min Exi Min Active Infowar (turns) 2614 | 20 1610 619 324 41 Seismic 2614 | 20 1610 619 324 41 Robot Analysis Total . | . . . . . Derelict Logs Recovered 2 | . . 2 . . Drone Launches . | . . . . . Drone Recoveries . | . . . . . Exploration | -11 -10 -10 -10 -9 ------------- Run | Yrd Mat Min Exi Min Turns Passed 2737 | 128 1610 619 324 56 Spaces Moved 1641 | 65 781 468 310 17 Core 1 | 1 . . . . Treads 390 | 39 179 170 . 2 Legs . | . . . . . Wheels 1250 | 25 602 298 310 15 Hover . | . . . . . Flight . | . . . . . Fastest Speed 50 | 50 100 100 100 100 Average Speed 114 | 135 113 121 100 107 Slowest Speed 160 | 160 160 160 100 160 Overloaded Moves . | . . . . . Propulsion Burnouts . | . . . . . Robots Hopped . | . . . . . Potential Cave-ins . | . . . . . Cave-ins Triggered . | . . . . . Exploration Rate (%) 51 | 4 83 96 70 6 Regions Visited 4 Branch Regions 3 Pre-discovered Areas 3 | . 2 . 1 . Known Exits Taken 1 | . . . 1 . Unknown Exits Taken 3 | 1 1 1 . . Scrap Searched 1 | . . 1 . . Spaces Dug 13 | . 13 . . . Terrain Destroyed 60 | . 13 . . 47 Melee . | . . . . . Projectile 3 | . 3 . . . AOE 57 | . 10 . . 47 Terrain Rammed . | . . . . . Walls Destroyed . | . . . . . Machines Disabled . | . . . . . Actions | -11 -10 -10 -10 -9 --------- Run | Yrd Mat Min Exi Min Total 2327 | 85 1386 495 324 37 Wait 533 | . 509 11 13 . Move 1637 | 64 780 467 309 17 Hop . | . . . . . Pick Up 17 | 5 10 1 1 . Fast Attach 8 | 7 1 . . . Attach 3 | . . . . 3 Detach . | . . . . . Swap 20 | . 16 2 . 2 Drop 10 | . 8 1 1 . Fire 99 | 9 62 13 . 15 Melee . | . . . . . Ram . | . . . . . Kick . | . . . . . Crush . | . . . . . Escape Stasis . | . . . . . Rewire . | . . . . . Trap . | . . . . . Miscellaneous . | . . . . . Route ------- -11/Scrapyard -10/Materials (discovered 5 exits: *Mat x3 / [*Min] / Sub) -10/Mines (discovered 4 exits: *Mat x2 / *Exi / *Sub) -10/Exiles (discovered 2 exits: *Min x2) -9/Mines History --------- Turn | Location | Event 12 | -11/Scrapyard | Discovered new exit (range 15) 129 | -11/Scrapyard | Entered Materials 312 | -10/Materials | Build established: Mutant 542 | -10/Materials | Discovered new exit (range 16) 768 | -10/Materials | Discovered new exit (range 6) 956 | -10/Materials | Discovered new exit (range 7) 1560 | -10/Materials | Learned Storage stockpile data 1596 | -10/Materials | Learned 4 Subcaves zone layouts 1620 | -10/Materials | Identified exit to Materials 1633 | -10/Materials | Identified exit to Subcaves 1635 | -10/Materials | Loaded intel: 13 trap records 1637 | -10/Materials | Learned location of Recycling (-9) 1646 | -10/Materials | Learned location of Mines (-10) 1663 | -10/Materials | Learned Materials trap positions 1675 | -10/Materials | Repaired Lgt. Treads 1702 | -10/Materials | Repaired Lgt. Treads 1739 | -10/Materials | Entered Mines 1754 | -10/Mines | Core integrity fell below 50% 1858 | -10/Mines | Deemed a non-threat by the Exiles lab entrance 1858 | -10/Mines | Discovered new exit (range 5) 2027 | -10/Mines | Discovered exit to Subcaves (range 6) 2067 | -10/Mines | Learned Materials garrison access intel 2077 | -10/Mines | Assisted by bots powering up and referring to "LRC-V3" 2135 | -10/Mines | Found a hidden stash of uninstalled traps 2159 | -10/Mines | Learned Materials security intel 2172 | -10/Mines | Received a Mining Laser from a helpful Derelict 2221 | -10/Mines | Discovered exit to Materials (range 5) 2358 | -10/Mines | Entered Exiles 2358 | -10/Exiles | Accompanied by 4 allies 2359 | -10/Exiles | Identified exit to Mines 2385 | -10/Exiles | Met 8R-AWN 2399 | -10/Exiles | Met EX-HEX 2439 | -10/Exiles | Met EX-DEC 2444 | -10/Exiles | Learned location of Zion (-6) 2462 | -10/Exiles | Met EX-BIN 2476 | -10/Exiles | Aligned with FarCom system 2477 | -10/Exiles | Given EX-Vault access code 2500 | -10/Exiles | Opened EX-Vault 2509 | -10/Exiles | Found Modified TNC 2529 | -10/Exiles | Warned to stay clear of 0b10 Research branches 2682 | -10/Exiles | Left Exiles lab with Modified TNC 2682 | -10/Exiles | Entered Mines 2682 | -9/Mines | Accompanied by 3 allies 2683 | -9/Mines | Assembled infested the area 2688 | -9/Mines | Assisted by a Guerilla fighting off Assembled 2691 | -9/Mines | Met a Derelict bent on vengeance 2735 | -9/Mines | Core integrity fell below 20% 2738 | -9/Mines | System corruption reached 10% 2738 | -9/Mines | Destroyed by as-74479 with Assembled Blade Last Messages --------------- 02715_ HV Slug penetrates as-56007. 02715_ as-56007 suffers critical hit (Destroy). 02715_ as-56007 destroyed. 02715_ HV Slug penetrates Earth. 02718_ The unstable cave ceiling collapses. 02718_ X6-KMU(g) destroyed. 02719_ M3-05C(h) destroyed. 02721_ Com. Wheel destroyed. 02723_ Seismic Detector destroyed. 02723_ System corrupted by crushing effect (+3). 02723_ Lgt. Nuclear Core destroyed. 02728_ as-30708 suffers critical hit (Destroy). 02728_ as-30708 destroyed. 02728_ Lgt. Assault Rifle destroyed. 02728_ System corrupted by crushing effect (+1). 02731_ Lgt. Assault Rifle destroyed. 02731_ System corrupted by crushing effect (+4). 02737_ Lgt. Treads destroyed. 02737_ System corrupted by crushing effect (+5). 02738_ System corrupted: Matter fused (-9). Map ----- +----------------------------------------------------+ | ??????????????????????????????????????????????? | | ??????????????????????????????????????????????? | | ??????????????????????????????????????????????? | | ??????????????????????????????????????????????? | | ??????????????????????????????????????????????? | | ??????????????????????????????????????????????? | | ??????????????????????????????????????????????? | | ??????????????????????????????????????????????? | | ??????????????????????????????????????????????? | | ??????????????????????????????????????????????? | | ??????????????????????????????????????????????? | | ??????????????????????????????????????????????? | | ?????????????????????????????????#????????????? | | ???????????????????????????????? ?????????????? | | ??????????????????????????????? #????##???????? | | ?????????????????????????????## ### #???????? | | ???????????????????????????? $ ###??????? | | ???????????????????????####"# #??????? | | ??????????????????????##*=# # #??????? | | ??????????????????????# %%*%[ % %???? | | ??????????????????????# ===%[%% % " ???? | | ??????????????????????# !%!= # #??????? | | ??????????????????????# ##### # ??????? | | ??????????????????????# a#????###??#####??????? | | ????????????????????### a##???????????????????? | | ???????????????????## a@#???????????????????? | | ???????????????????# a #???????????????????? | | ???????????????????# #???????????????????? | | ???????????????????## ##???????????????????? | | ????????????????????######????????????????????? | | ??????????????????????????????????????????????? | | | | | | | | | | | | | | | | | | | | | | | | | | | | | | | | | | | | | | | +----------------------------------------------------+ Best States ------------- Heat Dissipation 25 Energy Generation 14 Energy Capacity 160 Matter Stores 300 Matter Capacity 300 Sight Range 16 Terrain Scan Density 10 Evasion (%) 40 Recoil Reduction 2 Item Schematics ----------------- None Robot Schematics ------------------ None Fabricated ------------ Nothing Repaired ---------- Lgt. Treads | 31% | -10/Materials Lgt. Treads | 30% | -10/Materials Studied --------- None Alien Tech Used ----------------- None Achievements -------------- None Challenges ------------ None Game ------ Seed FlightGyrokineticDrive Manual? 0 Play Time 00:17:16 Cumulative 339.0 hours Start 2026.04.14 @ 20:51:11 End 2026.04.14 @ 21:09:58 Sessions 1 Manual Loads 0 Difficulty Rogue Special Mode None Game No. 189 Rogue 185 Adventurer 4 Explorer 0 Win Type - Total 13 Types 10/0/3/0/0/0/0/0/0/0 Lore% 88 Gallery% 75 Achievement% 60 Wizard Run 0 Options --------- Layout 1 ASCII 0 Keyboard 1 Movement Numpad Keybinds 1 Fullscreen 1 Font 24/Smallcaps Map View 50x35 Zoom Use 0% Tactical HUD 1 Map Filters NONE Filters NONE Steam 1 RUN: 7772b40b-201c-4847-8803-aa23ad72fe65